[Event "Early-Titled-Tuesday-Blitz-January-23-2024"]
[Site "Chess.com"]
[Date "2024.01.23"]
[Round "9"]
[White "Chessbard1972"]
[Black "jhedigm"]
[Result "1-0"]
[WhiteElo "2457"]
[BlackElo "2543"]
[TimeControl "180+1"]
[EndTime "9:44:27 PST"]
[Termination "Chessbard1972 won on time"]

1. e4 {[%clk 0:03:00.9]} 1... c5 {[%clk 0:02:59.1]} 2. Nc3 {[%clk 0:03:00.2]}
2... a6 {[%clk 0:02:58.5]} 3. a4 {[%clk 0:02:59.4]} 3... d6 {[%clk 0:02:46.3]}
4. f4 {[%clk 0:02:58.5]} 4... Nc6 {[%clk 0:02:44.6]} 5. Nf3 {[%clk 0:02:57.6]}
5... g6 {[%clk 0:02:45.2]} 6. Bc4 {[%clk 0:02:57.3]} 6... Bg7 {[%clk 0:02:45.6]}
7. d3 {[%clk 0:02:57.4]} 7... e6 {[%clk 0:02:45.9]} 8. O-O {[%clk 0:02:57.3]}
8... Nge7 {[%clk 0:02:46.3]} 9. Kh1 {[%clk 0:02:57.2]} 9... O-O {[%clk
0:02:46.1]} 10. f5 {[%clk 0:02:56.6]} 10... d5 {[%clk 0:02:45]} 11. Ba2 {[%clk
0:02:55.7]} 11... dxe4 {[%clk 0:02:42.7]} 12. f6 {[%clk 0:02:52.5]} 12... Bxf6
{[%clk 0:02:42.1]} 13. Nxe4 {[%clk 0:02:52.4]} 13... Bg7 {[%clk 0:02:41]} 14.
Nxc5 {[%clk 0:02:52]} 14... b6 {[%clk 0:02:37.9]} 15. Ne4 {[%clk 0:02:50.3]}
15... h6 {[%clk 0:02:35.2]} 16. Qe1 {[%clk 0:02:47.4]} 16... f5 {[%clk
0:02:32.6]} 17. Nc3 {[%clk 0:02:42.7]} 17... Nd5 {[%clk 0:02:31.5]} 18. Nxd5
{[%clk 0:02:37.6]} 18... exd5 {[%clk 0:02:32.4]} 19. d4 {[%clk 0:02:28.8]} 19...
Ra7 {[%clk 0:02:31.6]} 20. c3 {[%clk 0:02:28.5]} 20... Re7 {[%clk 0:02:31.3]}
21. Qg3 {[%clk 0:02:27.4]} 21... Kh7 {[%clk 0:02:30.1]} 22. Qh4 {[%clk
0:02:16.3]} 22... Kg8 {[%clk 0:02:22]} 23. Bxh6 {[%clk 0:02:13.2]} 23... Bxh6
{[%clk 0:02:09.1]} 24. Qxh6 {[%clk 0:02:12.6]} 24... Rg7 {[%clk 0:02:07.6]} 25.
Rae1 {[%clk 0:02:08.3]} 25... b5 {[%clk 0:02:04.1]} 26. axb5 {[%clk 0:02:05.8]}
26... axb5 {[%clk 0:02:05]} 27. Ne5 {[%clk 0:02:01]} 27... Nxe5 {[%clk
0:02:00.6]} 28. Rxe5 {[%clk 0:02:00.3]} 28... Bb7 {[%clk 0:02:00.4]} 29. Rfe1
{[%clk 0:01:59.3]} 29... f4 {[%clk 0:01:54.4]} 30. Re6 {[%clk 0:01:43.7]} 30...
f3 {[%clk 0:01:23.5]} 31. gxf3 {[%clk 0:01:41.6]} 31... g5 {[%clk 0:00:13.8]}
32. Bb1 {[%clk 0:01:30.9]} 32... Qd7 {[%clk 0:00:09]} 33. Rg6 {[%clk 0:01:20.2]}
33... Rf7 {[%clk 0:00:04.2]} 34. Rxg5 {[%clk 0:01:16.4]} 1-0

[Event "Early-Titled-Tuesday-Blitz-January-23-2024"]
[Site "Chess.com"]
[Date "2024.01.23"]
[Round "9"]
[White "Raud100"]
[Black "Witik"]
[Result "1-0"]
[WhiteElo "2395"]
[BlackElo "2629"]
[TimeControl "180+1"]
[EndTime "9:44:35 PST"]
[Termination "Raud100 won by resignation"]

1. d4 {[%clk 0:03:00.9]} 1... Nf6 {[%clk 0:02:58.7]} 2. c4 {[%clk 0:03:01.2]}
2... g6 {[%clk 0:02:59]} 3. Nc3 {[%clk 0:03:01.9]} 3... Bg7 {[%clk 0:02:59.6]}
4. e4 {[%clk 0:03:02.1]} 4... d6 {[%clk 0:03:00.1]} 5. f3 {[%clk 0:03:02.8]}
5... O-O {[%clk 0:02:59.9]} 6. Be3 {[%clk 0:03:03.5]} 6... c5 {[%clk 0:02:59.3]}
7. Nge2 {[%clk 0:03:03.3]} 7... Nc6 {[%clk 0:02:55.6]} 8. Qd2 {[%clk 0:03:03]}
8... Qa5 {[%clk 0:02:54.3]} 9. O-O-O {[%clk 0:03:02.2]} 9... a6 {[%clk
0:02:47.8]} 10. Kb1 {[%clk 0:03:01.7]} 10... b5 {[%clk 0:02:39.3]} 11. dxc5
{[%clk 0:03:01.6]} 11... Ne5 {[%clk 0:01:31.1]} 12. Nd4 {[%clk 0:02:47.4]} 12...
Nxc4 {[%clk 0:01:09.7]} 13. Bxc4 {[%clk 0:02:47]} 13... bxc4 {[%clk 0:01:10.4]}
14. cxd6 {[%clk 0:02:37.5]} 14... exd6 {[%clk 0:01:05.9]} 15. Nd5 {[%clk
0:02:37.3]} 15... Qxd2 {[%clk 0:01:01.5]} 16. Nxf6+ {[%clk 0:02:32.6]} 16...
Bxf6 {[%clk 0:01:02.4]} 17. Rxd2 {[%clk 0:02:33.1]} 17... d5 {[%clk 0:00:37.3]}
18. exd5 {[%clk 0:02:30.4]} 18... Re8 {[%clk 0:00:36.2]} 19. Bf2 {[%clk
0:02:18.7]} 19... Bd7 {[%clk 0:00:29.6]} 20. Re1 {[%clk 0:02:09.1]} 20... Rec8
{[%clk 0:00:25.7]} 21. Ne2 {[%clk 0:01:51.4]} 21... Bf5+ {[%clk 0:00:20.5]} 22.
Kc1 {[%clk 0:01:47.6]} 22... c3 {[%clk 0:00:14.8]} 23. Nxc3 {[%clk 0:01:47.5]}
23... Bxc3 {[%clk 0:00:12.8]} 24. bxc3 {[%clk 0:01:48.4]} 24... Rxc3+ {[%clk
0:00:13.2]} 25. Kd1 {[%clk 0:01:48.9]} 25... Rb8 {[%clk 0:00:08.1]} 26. Re3
{[%clk 0:01:48.4]} 26... Rc4 {[%clk 0:00:04]} 27. g4 {[%clk 0:01:43.4]} 27...
Bd7 {[%clk 0:00:04]} 28. Ke2 {[%clk 0:01:42.2]} 28... Bb5 {[%clk 0:00:03.8]} 29.
Ke1 {[%clk 0:01:41.5]} 29... Rc1+ {[%clk 0:00:03.2]} 30. Rd1 {[%clk 0:01:41.6]}
30... Rc2 {[%clk 0:00:03.7]} 31. a3 {[%clk 0:01:37.2]} 31... h6 {[%clk
0:00:03.4]} 32. h4 {[%clk 0:01:36.9]} 32... g5 {[%clk 0:00:03.2]} 33. h5 {[%clk
0:01:36.9]} 33... Rbc8 {[%clk 0:00:02.7]} 34. d6 {[%clk 0:01:34.5]} 34... Ra2
{[%clk 0:00:01.5]} 35. d7 {[%clk 0:01:31]} 35... Rd8 {[%clk 0:00:02]} 36. Re7
{[%clk 0:01:27.3]} 36... Rb2 {[%clk 0:00:01.8]} 37. Bb6 {[%clk 0:01:26.1]} 37...
Ra8 {[%clk 0:00:01.1]} 38. d8=Q+ {[%clk 0:01:25.5]} 38... Rxd8 {[%clk
0:00:01.7]} 39. Rxd8+ {[%clk 0:01:25.5]} 39... Kg7 {[%clk 0:00:02]} 40. Bd4+
{[%clk 0:01:25.3]} 1-0

[Event "Early-Titled-Tuesday-Blitz-January-23-2024"]
[Site "Chess.com"]
[Date "2024.01.23"]
[Round "9"]
[White "jcibarra"]
[Black "wadsy27"]
[Result "1-0"]
[WhiteElo "2845"]
[BlackElo "2663"]
[TimeControl "180+1"]
[EndTime "9:44:36 PST"]
[Termination "jcibarra won by resignation"]

1. e4 {[%clk 0:03:00.2]} 1... e6 {[%clk 0:02:58.6]} 2. d4 {[%clk 0:03:00.1]}
2... d5 {[%clk 0:02:58.7]} 3. Nc3 {[%clk 0:03:00.7]} 3... Bb4 {[%clk 0:02:58.2]}
4. Ne2 {[%clk 0:02:59.8]} 4... Nc6 {[%clk 0:02:56.4]} 5. a3 {[%clk 0:02:58.8]}
5... Ba5 {[%clk 0:02:55]} 6. b4 {[%clk 0:02:56.3]} 6... Bb6 {[%clk 0:02:54.9]}
7. Bb2 {[%clk 0:02:56.8]} 7... Nf6 {[%clk 0:02:27.1]} 8. e5 {[%clk 0:02:53.3]}
8... Ne4 {[%clk 0:02:26.8]} 9. Nxe4 {[%clk 0:02:50.6]} 9... dxe4 {[%clk
0:02:27.7]} 10. c4 {[%clk 0:02:49.3]} 10... a5 {[%clk 0:02:27.7]} 11. b5 {[%clk
0:02:42]} 11... Ne7 {[%clk 0:02:27.3]} 12. c5 {[%clk 0:02:34.7]} 12... Ba7
{[%clk 0:02:21.5]} 13. Nc3 {[%clk 0:02:33.7]} 13... Nd5 {[%clk 0:02:01]} 14.
Nxe4 {[%clk 0:02:29.5]} 14... O-O {[%clk 0:01:49]} 15. Bd3 {[%clk 0:02:14]}
15... f5 {[%clk 0:01:42.4]} 16. exf6 {[%clk 0:02:08.2]} 16... Nxf6 {[%clk
0:01:41.9]} 17. O-O {[%clk 0:02:01.6]} 17... Bd7 {[%clk 0:01:35.7]} 18. Nxf6+
{[%clk 0:01:55.9]} 18... Qxf6 {[%clk 0:01:34.8]} 19. Qc2 {[%clk 0:01:55.6]}
19... Qh4 {[%clk 0:01:25.9]} 20. Rfe1 {[%clk 0:01:47.2]} 20... c6 {[%clk
0:01:23.2]} 21. Re4 {[%clk 0:01:43.6]} 21... Qh6 {[%clk 0:01:10]} 22. Bc1 {[%clk
0:01:41.3]} 22... Qh5 {[%clk 0:01:05]} 23. Re5 {[%clk 0:01:38.2]} 23... Qh4
{[%clk 0:00:56.2]} 24. g3 {[%clk 0:01:38.3]} 24... Qh3 {[%clk 0:00:42.4]} 25.
Qe2 {[%clk 0:01:35.3]} 25... g6 {[%clk 0:00:33.4]} 26. Be4 {[%clk 0:01:27]}
26... Bb8 {[%clk 0:00:21.9]} 27. Bg2 {[%clk 0:01:23]} 27... Bxe5 {[%clk
0:00:21.7]} 28. Bxh3 {[%clk 0:01:21.2]} 28... Bxd4 {[%clk 0:00:21.5]} 29. Bxe6+
{[%clk 0:01:06.1]} 29... Bxe6 {[%clk 0:00:21.2]} 30. Qxe6+ {[%clk 0:01:05]}
30... Kh8 {[%clk 0:00:21.9]} 31. Ra2 {[%clk 0:00:58.4]} 31... Rae8 {[%clk
0:00:16.6]} 32. Qd6 {[%clk 0:00:58.5]} 32... Be5 {[%clk 0:00:09.5]} 33. Bb2
{[%clk 0:00:55.6]} 1-0

[Event "Early-Titled-Tuesday-Blitz-January-23-2024"]
[Site "Chess.com"]
[Date "2024.01.23"]
[Round "9"]
[White "AttilaTurzo"]
[Black "ChessSwole"]
[Result "0-1"]
[WhiteElo "2499"]
[BlackElo "2626"]
[TimeControl "180+1"]
[EndTime "9:44:39 PST"]
[Termination "ChessSwole won by resignation"]

1. d4 {[%clk 0:03:00.9]} 1... d5 {[%clk 0:02:58.1]} 2. Nf3 {[%clk 0:03:00.3]}
2... Nf6 {[%clk 0:02:58.1]} 3. Bf4 {[%clk 0:03:00.8]} 3... c5 {[%clk 0:02:58]}
4. e3 {[%clk 0:03:01.1]} 4... Nc6 {[%clk 0:02:58.6]} 5. Nbd2 {[%clk 0:03:00.4]}
5... Qb6 {[%clk 0:02:56.7]} 6. dxc5 {[%clk 0:02:56.6]} 6... Qxb2 {[%clk
0:02:57]} 7. Rb1 {[%clk 0:02:44.5]} 7... Qc3 {[%clk 0:02:55.9]} 8. Bb5 {[%clk
0:02:38.8]} 8... e6 {[%clk 0:02:52.9]} 9. O-O {[%clk 0:02:16.1]} 9... Be7 {[%clk
0:02:51.2]} 10. Nb3 {[%clk 0:02:12.6]} 10... O-O {[%clk 0:02:36.3]} 11. Bxc6
{[%clk 0:01:34.2]} 11... bxc6 {[%clk 0:02:35.6]} 12. Be5 {[%clk 0:01:16.4]}
12... Qb4 {[%clk 0:02:32.6]} 13. Qd4 {[%clk 0:01:10.4]} 13... Qa3 {[%clk
0:02:17.1]} 14. Qb2 {[%clk 0:00:46]} 14... Qxb2 {[%clk 0:02:03]} 15. Rxb2 {[%clk
0:00:42.4]} 15... Nd7 {[%clk 0:02:03.3]} 16. Bd6 {[%clk 0:00:32.3]} 16... Bxd6
{[%clk 0:01:58.2]} 17. cxd6 {[%clk 0:00:33.2]} 17... c5 {[%clk 0:01:54.4]} 18.
Rfb1 {[%clk 0:00:20.5]} 18... a5 {[%clk 0:01:52.6]} 19. Nbd2 {[%clk 0:00:17.9]}
19... Ra6 {[%clk 0:01:46.1]} 20. Rb5 {[%clk 0:00:17.7]} 20... a4 {[%clk
0:01:42.7]} 21. c4 {[%clk 0:00:16.8]} 21... f6 {[%clk 0:01:35.3]} 22. cxd5
{[%clk 0:00:11.5]} 22... exd5 {[%clk 0:01:36.2]} 23. Rc1 {[%clk 0:00:12]} 23...
Kf7 {[%clk 0:01:30.9]} 24. e4 {[%clk 0:00:10.8]} 24... Rxd6 {[%clk 0:01:24.8]}
25. exd5 {[%clk 0:00:10.3]} 25... Rxd5 {[%clk 0:01:25.7]} 26. Ne4 {[%clk
0:00:10.4]} 26... Re8 {[%clk 0:01:22.6]} 27. Nc3 {[%clk 0:00:08.2]} 27... Rf5
{[%clk 0:01:04.2]} 28. Nxa4 {[%clk 0:00:08.3]} 28... Ba6 {[%clk 0:01:04.1]} 29.
Ra5 {[%clk 0:00:08.1]} 29... Bb7 {[%clk 0:01:02]} 30. Nxc5 {[%clk 0:00:07]}
30... Bxf3 {[%clk 0:00:56.4]} 31. Nxd7 {[%clk 0:00:05.7]} 31... Rxa5 {[%clk
0:00:54.3]} 0-1

[Event "Early-Titled-Tuesday-Blitz-January-23-2024"]
[Site "Chess.com"]
[Date "2024.01.23"]
[Round "9"]
[White "WhiteKnight2612"]
[Black "nihalsarin"]
[Result "0-1"]
[WhiteElo "2869"]
[BlackElo "3189"]
[TimeControl "180+1"]
[EndTime "9:44:41 PST"]
[Termination "nihalsarin won by resignation"]

1. d4 {[%clk 0:03:00.9]} 1... b5 {[%clk 0:02:58.8]} 2. e4 {[%clk 0:02:59.2]}
2... b4 {[%clk 0:02:58.9]} 3. Bd3 {[%clk 0:02:58.7]} 3... e6 {[%clk 0:02:59]} 4.
Nf3 {[%clk 0:02:58.3]} 4... a5 {[%clk 0:02:55.5]} 5. O-O {[%clk 0:02:58.6]} 5...
Be7 {[%clk 0:02:54.1]} 6. Bf4 {[%clk 0:02:58.6]} 6... Nf6 {[%clk 0:02:52.4]} 7.
a3 {[%clk 0:02:58]} 7... Ba6 {[%clk 0:02:46.6]} 8. axb4 {[%clk 0:02:53.9]} 8...
axb4 {[%clk 0:02:47.5]} 9. Bxa6 {[%clk 0:02:51.6]} 9... Rxa6 {[%clk 0:02:46.5]}
10. Rxa6 {[%clk 0:02:50.6]} 10... Nxa6 {[%clk 0:02:47.4]} 11. Qd3 {[%clk
0:02:50.5]} 11... Qa8 {[%clk 0:02:47.9]} 12. Nbd2 {[%clk 0:02:50]} 12... Qb7
{[%clk 0:02:33.2]} 13. Ra1 {[%clk 0:02:46.6]} 13... Nb8 {[%clk 0:02:33.6]} 14.
h3 {[%clk 0:02:28.6]} 14... O-O {[%clk 0:02:31.9]} 15. Ne5 {[%clk 0:02:05.3]}
15... d6 {[%clk 0:02:17]} 16. Nec4 {[%clk 0:02:03.4]} 16... d5 {[%clk
0:02:17.7]} 17. exd5 {[%clk 0:02:02.7]} 17... Nxd5 {[%clk 0:02:18.6]} 18. Bg3
{[%clk 0:02:00]} 18... Nc6 {[%clk 0:02:09.2]} 19. Na5 {[%clk 0:01:49.1]} 19...
Nxa5 {[%clk 0:02:05.5]} 20. Rxa5 {[%clk 0:01:48.3]} 20... Ra8 {[%clk 0:02:04.3]}
21. Rxa8+ {[%clk 0:01:08.4]} 21... Qxa8 {[%clk 0:02:03.7]} 22. Kh2 {[%clk
0:01:09.3]} 22... h5 {[%clk 0:02:03.2]} 23. c4 {[%clk 0:01:08.2]} 23... bxc3
{[%clk 0:02:01]} 24. bxc3 {[%clk 0:01:08.8]} 24... h4 {[%clk 0:01:59.1]} 25. Be5
{[%clk 0:01:01.9]} 25... f6 {[%clk 0:01:59.4]} 26. c4 {[%clk 0:01:01.9]} 26...
Nb4 {[%clk 0:01:59.5]} 27. Qg6 {[%clk 0:00:59.7]} 27... fxe5 {[%clk 0:01:48.6]}
28. Qxe6+ {[%clk 0:00:59.1]} 28... Kf8 {[%clk 0:01:49.4]} 29. Qf5+ {[%clk
0:00:48.3]} 29... Ke8 {[%clk 0:01:49]} 30. Qg6+ {[%clk 0:00:34.6]} 30... Kd7
{[%clk 0:01:48.8]} 31. Qg4+ {[%clk 0:00:30.1]} 31... Kd8 {[%clk 0:01:48.9]} 32.
Qxg7 {[%clk 0:00:29.9]} 32... Qc6 {[%clk 0:01:40.4]} 33. dxe5 {[%clk 0:00:27.5]}
33... Nd3 {[%clk 0:01:33]} 34. Nf3 {[%clk 0:00:23.1]} 34... Qxc4 {[%clk
0:01:29.9]} 35. Qg6 {[%clk 0:00:12.4]} 35... Nxe5 {[%clk 0:01:24.3]} 36. Nxe5
{[%clk 0:00:07.2]} 36... Qf4+ {[%clk 0:01:24.4]} 37. g3 {[%clk 0:00:07.1]} 37...
Qxf2+ {[%clk 0:01:21.5]} 38. Kh1 {[%clk 0:00:06.7]} 38... Qe1+ {[%clk 0:01:22]}
0-1

[Event "Early-Titled-Tuesday-Blitz-January-23-2024"]
[Site "Chess.com"]
[Date "2024.01.23"]
[Round "9"]
[White "Iunusovnuriddin"]
[Black "Mistango"]
[Result "0-1"]
[WhiteElo "2300"]
[BlackElo "2522"]
[TimeControl "180+1"]
[EndTime "9:44:48 PST"]
[Termination "Mistango won by resignation"]

1. e4 {[%clk 0:03:00.6]} 1... c5 {[%clk 0:02:59.3]} 2. c3 {[%clk 0:02:57.6]}
2... d5 {[%clk 0:02:58.7]} 3. exd5 {[%clk 0:02:54.7]} 3... Qxd5 {[%clk
0:02:59.6]} 4. d4 {[%clk 0:02:54.7]} 4... cxd4 {[%clk 0:03:00.5]} 5. cxd4 {[%clk
0:02:54.4]} 5... e5 {[%clk 0:03:01.2]} 6. dxe5 {[%clk 0:02:53.1]} 6... Qxd1+
{[%clk 0:03:01.1]} 7. Kxd1 {[%clk 0:02:54]} 7... Nc6 {[%clk 0:03:01.8]} 8. f3
{[%clk 0:02:10.3]} 8... Bf5 {[%clk 0:03:00.4]} 9. g4 {[%clk 0:01:55.4]} 9...
O-O-O+ {[%clk 0:02:59.9]} 10. Ke1 {[%clk 0:01:52.6]} 10... Be6 {[%clk
0:02:54.7]} 11. Be3 {[%clk 0:01:45.7]} 11... Nxe5 {[%clk 0:02:53.8]} 12. Nc3
{[%clk 0:01:43.9]} 12... Bb4 {[%clk 0:02:50.7]} 13. Rc1 {[%clk 0:01:42.8]} 13...
Kb8 {[%clk 0:02:49.3]} 14. Kf2 {[%clk 0:01:43.1]} 14... Nf6 {[%clk 0:02:45.3]}
15. Bf4 {[%clk 0:01:39.1]} 15... Bd6 {[%clk 0:02:43.6]} 16. Bg3 {[%clk
0:01:31.2]} 16... a6 {[%clk 0:02:22.4]} 17. Nh3 {[%clk 0:01:21.3]} 17... Nc4
{[%clk 0:02:14.7]} 18. Bxc4 {[%clk 0:01:15.6]} 18... Bxc4 {[%clk 0:02:12.6]} 19.
Rhd1 {[%clk 0:01:09.5]} 19... Bxg3+ {[%clk 0:02:10.5]} 20. Kxg3 {[%clk 0:01:10]}
20... h5 {[%clk 0:02:07.7]} 21. g5 {[%clk 0:01:07.6]} 21... h4+ {[%clk
0:02:07.1]} 22. Kg2 {[%clk 0:01:05.8]} 22... Nd5 {[%clk 0:02:05.7]} 23. Nxd5
{[%clk 0:01:05.2]} 23... Bxd5 {[%clk 0:02:06.2]} 24. Nf4 {[%clk 0:01:04.3]}
24... Bc6 {[%clk 0:02:06.2]} 25. Kf2 {[%clk 0:00:58.8]} 25... Rhe8 {[%clk
0:01:57.2]} 26. Nh5 {[%clk 0:00:51.3]} 26... Rxd1 {[%clk 0:01:43.2]} 27. Rxd1
{[%clk 0:00:52.2]} 27... Re5 {[%clk 0:01:42.3]} 28. f4 {[%clk 0:00:50]} 28...
Re4 {[%clk 0:01:32.1]} 29. Re1 {[%clk 0:00:42.7]} 29... Rb4 {[%clk 0:01:32.1]}
30. Re7 {[%clk 0:00:22.3]} 30... Rxb2+ {[%clk 0:01:28.6]} 31. Ke3 {[%clk
0:00:21.9]} 31... Bd5 {[%clk 0:01:12.9]} 32. Nxg7 {[%clk 0:00:20.5]} 32... Rxh2
{[%clk 0:01:12.1]} 33. Nf5 {[%clk 0:00:12.5]} 33... h3 {[%clk 0:01:11.2]} 34.
Re8+ {[%clk 0:00:12.7]} 34... Ka7 {[%clk 0:01:10.9]} 35. Rh8 {[%clk 0:00:10.9]}
35... Rxa2 {[%clk 0:01:08.5]} 36. Nd4 {[%clk 0:00:05.3]} 36... h2 {[%clk
0:01:05.9]} 0-1

[Event "Early-Titled-Tuesday-Blitz-January-23-2024"]
[Site "Chess.com"]
[Date "2024.01.23"]
[Round "9"]
[White "LyonBeast"]
[Black "Sam_ChessMood"]
[Result "1-0"]
[WhiteElo "3161"]
[BlackElo "2933"]
[TimeControl "180+1"]
[EndTime "9:44:49 PST"]
[Termination "LyonBeast won by checkmate"]

1. e4 {[%clk 0:03:00.9]} 1... c5 {[%clk 0:03:00]} 2. Nf3 {[%clk 0:03:01]} 2...
d6 {[%clk 0:03:00.5]} 3. d4 {[%clk 0:03:00.7]} 3... cxd4 {[%clk 0:03:00.9]} 4.
Nxd4 {[%clk 0:03:01.6]} 4... Nf6 {[%clk 0:03:01.2]} 5. Nc3 {[%clk 0:03:02.2]}
5... a6 {[%clk 0:03:01.6]} 6. Bc4 {[%clk 0:03:00.2]} 6... e6 {[%clk 0:03:01.1]}
7. Bb3 {[%clk 0:03:00.8]} 7... b5 {[%clk 0:02:53.9]} 8. Qf3 {[%clk 0:03:00.3]}
8... Qb6 {[%clk 0:02:48.3]} 9. O-O {[%clk 0:02:59.9]} 9... Qb7 {[%clk
0:02:39.2]} 10. Re1 {[%clk 0:02:57.7]} 10... Be7 {[%clk 0:02:31.3]} 11. Qg3
{[%clk 0:02:57.4]} 11... b4 {[%clk 0:02:05.6]} 12. Na4 {[%clk 0:02:44.9]} 12...
O-O {[%clk 0:02:00.8]} 13. Bh6 {[%clk 0:02:44.2]} 13... Ne8 {[%clk 0:02:00.9]}
14. c3 {[%clk 0:02:32.3]} 14... Bf6 {[%clk 0:01:51.9]} 15. Bg5 {[%clk
0:02:27.4]} 15... Bxg5 {[%clk 0:01:47.8]} 16. Qxg5 {[%clk 0:02:27.1]} 16... Bd7
{[%clk 0:01:42.6]} 17. Qa5 {[%clk 0:02:00.4]} 17... bxc3 {[%clk 0:01:29.9]} 18.
Nxc3 {[%clk 0:01:58.3]} 18... Nc6 {[%clk 0:01:29.1]} 19. Nxc6 {[%clk 0:01:58.2]}
19... Bxc6 {[%clk 0:01:29.7]} 20. Rad1 {[%clk 0:01:56.5]} 20... h6 {[%clk
0:01:11.4]} 21. h3 {[%clk 0:01:55.2]} 21... Rb8 {[%clk 0:00:59.3]} 22. Re3
{[%clk 0:01:51.3]} 22... Qa8 {[%clk 0:00:48.8]} 23. Rd4 {[%clk 0:01:44.4]} 23...
Rd8 {[%clk 0:00:39.1]} 24. Bc4 {[%clk 0:01:34.8]} 24... Bb7 {[%clk 0:00:39.3]}
25. Bd3 {[%clk 0:01:23.3]} 25... Nf6 {[%clk 0:00:34.7]} 26. Ra4 {[%clk
0:01:06.3]} 26... Rb8 {[%clk 0:00:33.9]} 27. Re2 {[%clk 0:01:03.6]} 27... d5
{[%clk 0:00:22]} 28. exd5 {[%clk 0:01:04]} 28... Nxd5 {[%clk 0:00:20.9]} 29.
Nxd5 {[%clk 0:01:04.3]} 29... Bxd5 {[%clk 0:00:21.1]} 30. Rg4 {[%clk 0:01:01.9]}
30... Qc6 {[%clk 0:00:20.5]} 31. Qd2 {[%clk 0:00:59.1]} 31... Kh8 {[%clk
0:00:15.9]} 32. Qf4 {[%clk 0:00:54.3]} 32... Rbc8 {[%clk 0:00:14.8]} 33. Rc2
{[%clk 0:00:52.1]} 33... Qd7 {[%clk 0:00:13.9]} 34. Qd4 {[%clk 0:00:41.5]} 34...
Rxc2 {[%clk 0:00:13.4]} 35. Qxg7# {[%clk 0:00:40.9]} 1-0

[Event "Early-Titled-Tuesday-Blitz-January-23-2024"]
[Site "Chess.com"]
[Date "2024.01.23"]
[Round "9"]
[White "Arystanner"]
[Black "hakanazeri2"]
[Result "1-0"]
[WhiteElo "2787"]
[BlackElo "2577"]
[TimeControl "180+1"]
[EndTime "9:44:50 PST"]
[Termination "Arystanner won on time"]

1. e4 {[%clk 0:03:00.9]} 1... c5 {[%clk 0:02:57.9]} 2. Nf3 {[%clk 0:03:01.3]}
2... Nc6 {[%clk 0:02:55.1]} 3. Bb5 {[%clk 0:03:01.2]} 3... e6 {[%clk 0:02:55.2]}
4. c3 {[%clk 0:02:58.8]} 4... Qb6 {[%clk 0:02:52.1]} 5. a4 {[%clk 0:02:56.2]}
5... a6 {[%clk 0:02:46.6]} 6. Bxc6 {[%clk 0:02:56.8]} 6... Qxc6 {[%clk
0:02:47.1]} 7. O-O {[%clk 0:02:57.5]} 7... Qxe4 {[%clk 0:02:43.2]} 8. d4 {[%clk
0:02:58.2]} 8... cxd4 {[%clk 0:02:41.3]} 9. cxd4 {[%clk 0:02:58.2]} 9... Nf6
{[%clk 0:02:41.2]} 10. Nc3 {[%clk 0:02:57]} 10... Qc6 {[%clk 0:02:38.9]} 11. d5
{[%clk 0:02:57.6]} 11... Nxd5 {[%clk 0:02:37.2]} 12. Nxd5 {[%clk 0:02:58]} 12...
Qxd5 {[%clk 0:02:36]} 13. Qxd5 {[%clk 0:02:57.9]} 13... exd5 {[%clk 0:02:36.6]}
14. Re1+ {[%clk 0:02:58.8]} 14... Be7 {[%clk 0:02:33.5]} 15. Bf4 {[%clk
0:02:44.8]} 15... d6 {[%clk 0:01:22.3]} 16. Rac1 {[%clk 0:02:31.5]} 16... Be6
{[%clk 0:01:21.5]} 17. Rc7 {[%clk 0:02:28.3]} 17... Rb8 {[%clk 0:01:18.9]} 18.
Nd4 {[%clk 0:02:25.5]} 18... Kd8 {[%clk 0:00:51.3]} 19. Rxe6 {[%clk 0:01:58.6]}
19... fxe6 {[%clk 0:00:50.6]} 20. Nxe6+ {[%clk 0:01:58.9]} 20... Ke8 {[%clk
0:00:51.3]} 21. Nxg7+ {[%clk 0:01:59]} 21... Kd8 {[%clk 0:00:24.6]} 22. Ne6+
{[%clk 0:01:59.2]} 22... Ke8 {[%clk 0:00:25.2]} 23. Kf1 {[%clk 0:01:59.9]} 23...
Rg8 {[%clk 0:00:19.1]} 24. Nd4 {[%clk 0:01:41.5]} 24... Kd8 {[%clk 0:00:17]} 25.
Ne6+ {[%clk 0:01:40.6]} 25... Ke8 {[%clk 0:00:17.1]} 26. Rc3 {[%clk 0:01:41]}
26... Kd7 {[%clk 0:00:15.6]} 27. Nd4 {[%clk 0:01:36.9]} 27... Bf6 {[%clk
0:00:12.7]} 28. Rd3 {[%clk 0:01:37.2]} 28... Bxd4 {[%clk 0:00:12.2]} 29. Rxd4
{[%clk 0:01:38.1]} 29... Ke6 {[%clk 0:00:09.5]} 30. g3 {[%clk 0:01:37]} 30...
Rbc8 {[%clk 0:00:09.9]} 31. Rb4 {[%clk 0:01:35]} 31... Rg7 {[%clk 0:00:09]} 32.
h4 {[%clk 0:01:33.2]} 32... Rc4 {[%clk 0:00:09.1]} 33. Rb6 {[%clk 0:01:33.6]}
33... Rc6 {[%clk 0:00:09.7]} 34. Rb3 {[%clk 0:01:33.7]} 34... d4 {[%clk
0:00:09.3]} 35. Ke2 {[%clk 0:01:33.4]} 35... Kd5 {[%clk 0:00:08.2]} 36. Kd3
{[%clk 0:01:32.6]} 36... Rf7 {[%clk 0:00:04.2]} 37. Rb4 {[%clk 0:01:32.2]} 37...
Rxf4 {[%clk 0:00:04.2]} 38. gxf4 {[%clk 0:01:32.2]} 38... Ke6 {[%clk 0:00:04.9]}
39. Rxd4 {[%clk 0:01:32.6]} 39... d5 {[%clk 0:00:05.1]} 40. Rb4 {[%clk
0:01:31.6]} 40... Kf5 {[%clk 0:00:04.5]} 41. Rxb7 {[%clk 0:01:31.3]} 41... h5
{[%clk 0:00:02]} 42. Rh7 {[%clk 0:01:31.2]} 42... Kg4 {[%clk 0:00:02.3]} 43. f5
{[%clk 0:01:30.3]} 43... Kxh4 {[%clk 0:00:02.3]} 44. Rg7 {[%clk 0:01:28.5]}
44... Rf6 {[%clk 0:00:02.1]} 45. Ke3 {[%clk 0:01:24.8]} 45... Rxf5 {[%clk
0:00:02.5]} 46. f4 {[%clk 0:01:25.6]} 1-0